Cogmind - Beta 15 @@@ ROGUE MODE // 2025.10.02 @ 21:30:01 Player: Reflectatory Result: Destroyed by Y-45 Defender with Heavy Assault Rifle Performance ------------- Evolutions (0) 0 Regions Visited (3) 600 Robots Destroyed (11) 55 Value Destroyed (345) 345 Prototype IDs (11) 220 Alien Tech Used (0) 0 Bonus (0) 0 TOTAL SCORE: 1220 Bonus ------- None Cogmind --------- Core Integrity 0/250 Matter 209/300 Energy 121/125 System Corruption 0% Temperature Cool (12) Movement Walking (130) Location -8/Recycling Parts ------- > --- POWER (1) -------- Light Ion Engine > --- PROPULSION (2) --- Cargo Legs > --- UTILITY (2+2) ---- Small Storage Unit Advanced Visual Processing Unit (+) Makeshift Light Armor Plating (+) > --- WEAPON (2) ------- Shock Rifle High-powered Shotgun > --- INVENTORY (8) ---- Subdweller Power Source Subdweller Monowheel Subdweller Optics Subdweller Optics Subdweller Machine Gun Subdweller Machine Gun Flamer Mining Claw Peak State ------------ > --- POWER ------------ Light Ion Engine > --- PROPULSION ------- Cargo Legs > --- UTILITY ---------- Small Storage Unit Advanced Visual Processing Unit Core Shielding Makeshift Light Armor Plating > --- WEAPON ----------- Shock Rifle High-powered Shotgun > --- INVENTORY -------- Subdweller Power Source Subdweller Monowheel Subdweller Optics Subdweller Optics Subdweller Machine Gun Subdweller Machine Gun Flamer Mining Claw [Rating: 33] Favorites ----------- Power Light Ion Engine Engine Light Ion Engine Propulsion Light Treads Treads Light Treads Leg Cargo Legs Wheel Wheel Utility Small Storage Unit Storage Small Storage Unit Processor Advanced Visual Processing Unit Protection Core Shielding Weapon Mining Claw Energy Gun Small Laser Ballistic Gun High-powered Shotgun Special Weapon Mining Laser Slashing Weapon Mining Claw Build | -11 -10 -10 -8 ------- Run | Yrd Mat Sub Rec Slots Evolved . | . . . . Power . | . . . . Propulsion . | . . . . Utility . | . . . . Weapon . | . . . . Parts Attached 22 | 6 1 12 3 Power 3 | 1 . 2 . Engine 3 | 1 . 2 . Core . | . . . . Reactor . | . . . . Propulsion 5 | 2 . 3 . Treads 2 | 2 . . . Leg 1 | . . 1 . Wheel 2 | . . 2 . Hover . | . . . . Flight . | . . . . Utility 4 | 1 1 1 1 Device . | . . . . Storage 1 | 1 . . . Processor 1 | . . . 1 Hackware . | . . . . Protection 2 | . 1 1 . Artifact . | . . . . Weapon 10 | 2 . 6 2 Energy Gun 4 | 2 . 1 1 Energy Cannon . | . . . . Ballistic Gun 3 | . . 2 1 Ballistic Cannon . | . . . . Launcher . | . . . . Special Weapon 2 | . . 2 . Impact Weapon . | . . . . Slashing Weapon 1 | . . 1 . Piercing Weapon . | . . . . Special Melee Weapon . | . . . . Unidentified Prototypes . | . . . . Parts Lost 9 | . . 8 1 Power 2 | . . 2 . Propulsion 2 | . . 2 . Utility 1 | . . . 1 Weapon 4 | . . 4 . Highest Loss Streak 3 | . . 3 1 To Critical Strikes 1 | . . 1 . Average Backups 7 | 2 6 7 7 Power 1 | . 1 1 1 Propulsion 1 | 1 3 1 1 Utility 1 | . . 2 2 Weapon 2 | . 1 2 3 Tool/Special . | . . . . Unused Backups 8 | . 2 2 4 Power 2 | . . 1 1 Propulsion 3 | . 2 . 1 Utility 3 | . . 1 2 Weapon . | . . . . Tool/Special . | . . . . Average Slot Usage (%) 86 | . 93 85 87 Engine 11 | . 14 11 11 Treads 8 | . 28 6 . Leg 4 | . . 4 11 Wheel 6 | . . 9 . Storage 12 | . 14 12 11 Processor 1 | . . . 10 Protection 14 | . 7 13 22 Energy Gun 9 | . 28 6 10 Ballistic Gun 3 | . . 1 11 Special Weapon 5 | . . 7 . Slashing Weapon 6 | . . 8 . Peak Build Rating 33 | 6 7 28 33 Average Rating 15 | 4 6 13 32 On Entrance 10 | . 6 7 28 Naked Turns . | . . . . Heaviest Build 21 | 11 12 21 21 Greatest Support 55 | 40 40 55 55 Greatest Overweight (x) 4 | . . 4 . Average Overweight (x) . | . . . . Largest Inventory Capacity 8 | 8 8 8 8 Average Capacity 7 | 6 8 8 8 Most Carried 8 | 6 8 8 8 Average Carried 7 | 2 6 7 7 Final Capacity 8 | 8 8 8 8 Final Carried 8 | 6 8 6 8 Class Distribution -------------------- 100% | Mutant Dominant Class ---------------- Mutant | -10/Materials Mutant | -10/Subcaves Mutant | -8/Recycling Resources | -11 -10 -10 -8 ----------- Run | Yrd Mat Sub Rec Matter Collected 470 | 174 96 200 . Remotely . | . . . . Salvage Created 375 | . 133 242 . Parts 22 | . 6 16 . Haulers Intercepted . | . . . . Recyclers Shooed . | . . . . Parts Field Recycled . | . . . . Retrieved Matter . | . . . . Parts Self-Destructed 8 | . . 8 . Prevented . | . . . . Kills | -11 -10 -10 -8 ------- Run | Yrd Mat Sub Rec Combat Hostiles Destroyed 11 | . 3 8 . Guns 10 | . 3 7 . Cannons 1 | . . 1 . Classes Destroyed 3 | . 1 2 . Swarmer 3 | . . 3 . Grunt 3 | . 3 . . Subdweller 5 | . . 5 . Best Kill Streak 3 | . 2 3 . Combat Bots Only 3 | . 2 3 . Max Kills in Single Turn 1 | . 1 1 . Gunslinging . | . . . . Exploded . | . . . . Melee . | . . . . Uniques/NPCs Destroyed . | . . . . Combat | -11 -10 -10 -8 -------- Run | Yrd Mat Sub Rec Hostile Shots Fired 161 | . 23 134 4 Missed 58 | . 9 49 . Hits 103 | . 14 85 4 Projectile 103 | . 14 85 4 Critical Strikes 1 | . . 1 . Damage Taken 1291 | . 177 1056 58 Core 252 | . . 227 25 Absorbed by Shields . | . . . . Redirected to Shielding 51 | . . 45 6 Core Remaining (%) 100 | 100 . . . Volleys Fired 71 | . 18 53 . Largest 2 | . 2 2 . Hottest 100 | . 90 100 . Shots Fired 103 | . 30 73 . Gun 94 | . 30 64 . Cannon . | . . . . Launcher . | . . . . Special 9 | . . 9 . Kinetic 33 | . . 33 . Thermal 70 | . 30 40 . Explosive . | . . . . Electromagnetic . | . . . . Robot Hit Streak 21 | . 4 21 . Robot Miss Streak 6 | . 3 6 . Penetration Max . | . . . . Secondary Targets . | . . . . Shots Hit Robots 65 | . 19 46 . Core Hits 24 | . 7 17 . Critical Kills . | . . . . Critical Parts Destroyed 1 | . . 1 . Critical Strikes 1 | . . 1 . Destroy 1 | . . 1 . Melee Attacks 31 | . . 31 . Impact . | . . . . Slashing 31 | . . 31 . Piercing . | . . . . Sneak Attacks . | . . . . Combat Hostiles . | . . . . Follow-up Attacks . | . . . . Damage Inflicted 920 | . 219 701 . Guns 851 | . 219 632 . Cannons . | . . . . Explosions . | . . . . Melee 45 | . . 45 . Ramming . | . . . . Kinetic 328 | . . 328 . Thermal 547 | . 219 328 . Explosive . | . . . . Electromagnetic . | . . . . Impact . | . . . . Slashing 45 | . . 45 . Piercing . | . . . . Highest Corruption . | . . . . Average Corruption . | . . . . Corruption Purged . | . . . . Corruption Blocked . | . . . . Overload Shots . | . . . . Overflow Damage . | . . . . Projectiles . | . . . . Explosions . | . . . . Melee . | . . . . Knockbacks . | . . . . Impact . | . . . . Kinetic . | . . . . Secondary . | . . . . Self-Inflicted Damage . | . . . . Shots . | . . . . Rammed . | . . . . Targets Rammed . | . . . . Kicked . | . . . . Crushed . | . . . . Highest Temperature 231 | . 231 3 . Average Temperature 107 | . 111 3 . Received Heat Transfer 381 | . 102 261 18 Effects 2 | . 2 . . Interference 2 | . 2 . . Siege Activations . | . . . . Martial Activations . | . . . . Shielding Activations . | . . . . Robots Disrupted . | . . . . Combat Hostiles . | . . . . Robots Corrupted . | . . . . Combat Hostiles . | . . . . Parts Fried . | . . . . Impact Corruptions . | . . . . Robots Melted . | . . . . Combat Hostiles . | . . . . Parts Melted 3 | . . 3 . Heat Transferred 1368 | . 583 785 . Parts Sabotaged . | . . . . Parts Stolen . | . . . . Parts Stripped . | . . . . Power Chain Reactions . | . . . . Alert | -11 -10 -10 -8 ------- Run | Yrd Mat Sub Rec Maximum Alert Level . | . . . . Low Security (%) 100 | 100 100 . 100 Level 1 . | . . . . Level 2 . | . . . . Level 3 . | . . . . Level 4 . | . . . . Level 5 . | . . . . High Security . | . . . . Max Security . | . . . . Peak Influence 114 | . 50 . 114 Initial 114 | . . . 114 Average 42 | . 12 . 75 Influence Increases 498 | . 85 330 83 Destroy 0b10 Robot/C 120 | . 60 60 . Destroy Leader 20 | . 20 . . Successful Hack 13 | . 5 . 8 Select Force Hacks 60 | . . . 60 Lose Combat Pursuer 285 | . . 270 15 Influence Decreases 481 | . 55 121 305 Entered New Map 140 | . . 15 125 Time Decay 311 | . 55 86 170 Lost Part 30 | . . 20 10 Squads Dispatched 1 | . 1 . . Investigation . | . . . . Extermination . | . . . . Reinforcement 1 | . 1 . . Assault . | . . . . Garrison . | . . . . Intercept . | . . . . Searches Triggered . | . . . . Construction Impeded . | . . . . Haulers Reinforced . | . . . . Active Scanning Responses . | . . . . Cargo Convoy Interrupts . | . . . . Stealth | -11 -10 -10 -8 --------- Run | Yrd Mat Sub Rec Distress Signals 1 | . 1 . . Communications Jammed . | . . . . Distress Signals . | . . . . Times Spotted 32 | . 9 21 2 Peak Tracking Total 4 | . 3 4 1 Tactical Retreats 8 | . . 7 1 Traps | -11 -10 -10 -8 ------- Run | Yrd Mat Sub Rec Traps Triggered . | . . . . Indirectly . | . . . . Trap Hack Attempts . | . . . . Triggered . | . . . . Disarmed . | . . . . Reprogrammed . | . . . . Reused . | . . . . Traps Extracted . | . . . . Installed . | . . . . Triggered . | . . . . Machines | -11 -10 -10 -8 ---------- Run | Yrd Mat Sub Rec Machines Disabled 3 | . . 3 . Max in Single Turn 1 | . . 1 . Machines Repaired . | . . . . Machines Dismantled . | . . . . Machines Sabotaged . | . . . . Overloaded Fab Kills . | . . . . Hacking | -11 -10 -10 -8 --------- Run | Yrd Mat Sub Rec Machines Accessed 6 | . 1 2 3 Terminals 2 | . 1 . 1 Fabricators . | . . . . Repair Stations . | . . . . Recycling Units 2 | . . . 2 Scanalyzers . | . . . . Garrison Access . | . . . . Total Hacks 23 | . 2 14 7 Successful 19 | . 1 14 4 Failed 4 | . 1 . 3 Catastrophic 1 | . 1 . . Database Lockouts . | . . . . Manual 9 | . 2 . 7 Terminals 6 | . 2 . 4 Fabricators . | . . . . Repair Stations . | . . . . Recycling Units 3 | . . . 3 Scanalyzers . | . . . . Garrison Access . | . . . . Terminal Hacks 14 | . . 14 . Record 13 | . . 13 . Proto ID Catalog 1 | . . 1 . Fabricator Hacks . | . . . . Repair Station Hacks . | . . . . Recycling Unit Hacks . | . . . . Scanalyzer . | . . . . Garrison Access Hacks . | . . . . Unauthorized Hacks 5 | . 1 . 4 Terminals 3 | . 1 . 2 Track 1 | . . . 1 Botnet 2 | . 1 . 1 Fabricators . | . . . . Repair Stations . | . . . . Recycling Units 2 | . . . 2 Tunnel 2 | . . . 2 Scanalyzers . | . . . . Garrison Access . | . . . . Data Cores Recovered . | . . . . Used . | . . . . Hacking Detections 2 | . 1 . 1 Full Trace Events . | . . . . Feedback Events . | . . . . Feedback Blocked . | . . . . Robot Schematics Acquired . | . . . . Robots Built . | . . . . Authchips . | . . . . Time . | . . . . Total Robot Build Rating . | . . . . Part Schematics Acquired . | . . . . Parts Built . | . . . . Authchips . | . . . . Time . | . . . . Total Part Build Rating . | . . . . Parts Repaired . | . . . . Time . | . . . . Parts Recycled . | . . . . Recycled Matter . | . . . . Retrieved Matter . | . . . . Retrieved Components . | . . . . Parts Scanalyzed . | . . . . Part Schematics Acquired . | . . . . Parts Damaged . | . . . . Bothacking | -11 -10 -10 -8 ------------ Run | Yrd Mat Sub Rec Used RIF Installer . | . . . . Robots Hacked . | . . . . Non-combat . | . . . . Combat . | . . . . Robot Hacks Applied . | . . . . Relay Couplers Released . | . . . . Fabnet Peak Effective % . | . . . . Robots Rewired . | . . . . Allies Hacked . | . . . . Hacks Repelled . | . . . . Allies | -11 -10 -10 -8 -------- Run | Yrd Mat Sub Rec Total Allies . | . . . . Largest Group . | . . . . Highest-Rated Group . | . . . . Highest-Rated Ally . | . . . . Total Orders . | . . . . Ally Attacks . | . . . . Total Damage . | . . . . Kills . | . . . . Allies Corrupted . | . . . . Allies Melted . | . . . . Intel | -11 -10 -10 -8 ------- Run | Yrd Mat Sub Rec Active Infowar (turns) 347 | . . . 347 Optics 347 | . . . 347 Robot Analysis Total . | . . . . Derelict Logs Recovered 1 | . . 1 . Drone Launches . | . . . . Drone Recoveries . | . . . . Exploration | -11 -10 -10 -8 ------------- Run | Yrd Mat Sub Rec Turns Passed 2374 | 89 265 1661 359 Spaces Moved 1619 | 51 125 1173 270 Core 16 | 6 . 10 . Treads 364 | 45 125 194 . Legs 659 | . . 389 270 Wheels 580 | . . 580 . Hover . | . . . . Flight . | . . . . Fastest Speed 50 | 50 160 80 130 Average Speed 119 | 147 160 111 130 Slowest Speed 250 | 160 160 250 130 Overloaded Moves . | . . . . Propulsion Burnouts . | . . . . Robots Hopped . | . . . . Potential Cave-ins . | . . . . Cave-ins Triggered . | . . . . Exploration Rate (%) 44 | 5 22 87 63 Regions Visited 3 Branch Regions 2 Pre-discovered Areas 3 | . . 1 2 Known Exits Taken . | . . . . Unknown Exits Taken 3 | 1 1 1 . Scrap Searched . | . . . . Spaces Dug 1 | . . 1 . Terrain Destroyed 8 | . . 8 . Melee 1 | . . 1 . Projectile 7 | . . 7 . AOE . | . . . . Terrain Rammed . | . . . . Walls Destroyed . | . . . . Machines Disabled . | . . . . Actions | -11 -10 -10 -8 --------- Run | Yrd Mat Sub Rec Total 1878 | 63 161 1376 278 Wait 94 | . 12 82 . Move 1616 | 50 124 1172 270 Hop . | . . . . Pick Up 19 | 7 4 8 . Fast Attach 12 | 5 1 3 3 Attach 10 | 1 . 9 . Detach 4 | . . 2 2 Swap 8 | . . 8 . Drop 7 | . 2 5 . Fire 71 | . 18 53 . Melee 31 | . . 31 . Ram . | . . . . Kick . | . . . . Crush . | . . . . Escape Stasis . | . . . . Rewire 6 | . . 3 3 Trap . | . . . . Miscellaneous . | . . . . Route ------- -11/Scrapyard -10/Materials (discovered 2 exits: [*Min] / *Sub) -10/Subcaves (discovered 2 exits: [*Mat] / *Rec) -8/Recycling (discovered 1 exit: [*Fac]) History --------- Turn | Location | Event 15 | -11/Scrapyard | Discovered new exit (range 16) 90 | -11/Scrapyard | Entered Materials 283 | -10/Materials | Discovered new exit (range 11) 323 | -10/Materials | Build established: Mutant 343 | -10/Materials | Discovered new exit (range 8) 355 | -10/Materials | Entered Subcaves 723 | -10/Subcaves | Lost 3 parts (1p1n1w) 813 | -10/Subcaves | Core integrity fell below 50% 837 | -10/Subcaves | Lost 3 parts (1n2w) 1003 | -10/Subcaves | Visited Clippyterm 1006 | -10/Subcaves | Learned Factory emergency access door positions 1006 | -10/Subcaves | Learned location of Section 7 (-3) 1095 | -10/Subcaves | A swath of the cavern ceiling suddenly collapsed 1217 | -10/Subcaves | Shifting Twisted Machinery released Sub. Power Source 1221 | -10/Subcaves | Shifting Twisted Machinery released Mak. Light Armor Plating 1340 | -10/Subcaves | Visited 4L-MR0's lab 1352 | -10/Subcaves | Found Cargo Legs 1354 | -10/Subcaves | Attached Cargo Legs, gained temporary slots: Utility x2 1393 | -10/Subcaves | A swath of the cavern ceiling suddenly collapsed 1685 | -10/Subcaves | Discovered new exit (range 5) 1748 | -10/Subcaves | Core integrity fell below 20% 1772 | -10/Subcaves | Learned Materials emergency access door positions 1772 | -10/Subcaves | Discovered new exit (range 12) 2016 | -10/Subcaves | Entered Recycling 2017 | -8/Recycling | Met a Zionite searching for Scraptown 2355 | -8/Recycling | Discovered new exit (range 19) 2375 | -8/Recycling | Destroyed by Y-45 Defender with Heavy Assault Rifle Last Messages --------------- Awaiting botnet instructions. >>Trojan(Track) Trojan loaded successfully. Testing... Tracking enabled and active. Connecting with Recycling Unit... >>Force(Tunnel) DISCOVERED[-9/Mines] Connecting with Recycling Unit... >>Force(Tunnel) DISCOVERED[-4/Factory] Y-45 Defender springs to life. Attempting to rewire R-06 Scavenger. R-06 Scavenger is unpowered. Attempting to rewire R-06 Scavenger. R-06 Scavenger is unpowered. Attempting to rewire R-06 Scavenger. R-06 Scavenger is unpowered. EXIT=FOUND Core Shielding destroyed. Map ----- +----------------------------------------------------+ | | | | | | | | | | | | | | | | | ?????????????????????????????????????????????????? | | ?????????????????????????????????????????????????? | | ?????????????????????????????????????????????????? | | ?????????????????????????????????????????????????? | | ?????????????????????????????????????????????????? | | ?????????????????????????????????????????????????? | | ?????????????????????????????????????????????????? | | ?????????????????????????????????????????????????? | | ?????????????????????????????????????????????????? | | ?????????????????????????????????????????????????? | | ?????????????????????????????????????????????????? | | ???????????????????##????????????????????????????? | | ??????????????????##r############????????????????? | | ??????????????????# #????????????????? | | ??????????????????? ?????????????????? | | ???###??????????????? ???????????????????? | | #### #????????????????? ?????????????????????? | | #????###############@######?????????????????? | | ###### #?????????????????? | | + < #?????????????????? | | ###### #?????????????????? | | #????# ######?????????????????? | | ###### """"" #??????????????????????? | | + """"""""" #??????????????????????? | | # """ """ #??????????????????????? | | ###### #??????????????????????? | | #??????????????????????? | | ##########+####### Y#??????????????????????? | | # #??????????????????????? | | """ """ + ??????????????????????? | | """"""""" # ##?????????????????????? | | """"" " # #??????????????????????? | | + #??????????????????????? | | ##### "??????????????????????? | | #######+##########???# % Y??????????????????????? | | #???????????# "??????????????????????? | | ###### #????????????? ???????????????????????? | | # #????????????? ???????????????????????? | | # #???????????????????????????????????????? | | + #???????????????????????????????????????? | | """ # #???????????????????????????????????????? | | """ # #???????????????????????????????????????? | +----------------------------------------------------+ Best States ------------- Heat Dissipation 25 Energy Generation 10 Energy Capacity 250 Matter Stores 300 Matter Capacity 300 Sight Range 20 Terrain Scan Density 10 Armor Coverage 100 Core Shielding 20 Evasion (%) 55 Recoil Reduction 2 Item Schematics ----------------- None Robot Schematics ------------------ None Fabricated ------------ Nothing Repaired ---------- Nothing Alien Tech Used ----------------- None Achievements -------------- None Challenges ------------ None Game ------ Seed MakeshiftTacticalPit Manual? 0 Play Time 00:21:26 Cumulative 39.6 hours Start 2025.10.02 @ 21:11:23 End 2025.10.02 @ 21:30:01 Sessions 1 Manual Loads 0 Difficulty Rogue Special Mode None Game No. 41 Rogue 41 Adventurer 0 Explorer 0 Win Type - Total 1 Types 1/0/0/0/0/0/0/0/0/0 Lore% 39 Gallery% 39 Achievement% 39 Wizard Run 0 Options --------- Layout 1 ASCII 0 Keyboard 0 Movement Numpad Keybinds 0 Fullscreen 1 Font 32/SmallcapsGlow Map View 50x35 Zoom Use 0% Tactical HUD 0 Map Filters NONE Filters NONE Steam 1 RUN: 46eacba3-e529-4cce-a699-127218a0e586